bitfinex/quotes_ETHUSD_20250123
["timestamp","ask_amount","ask_price","bid_price","bid_amount"]
[1737591259323,3.07691,3250.1,3250.0,0.17173565]
[1737591261909,3.02666,3250.3,3250.0,0.17173565]
[1737591262111,6.15298,3250.5,3250.1,0.7794]
[1737591262636,3.07654,3250.4,3250.2,0.04658589]
[1737591263473,3.07641,3250.6,3250.2,0.04658589]
[1737591263916,3.07641,3250.6,3250.3,0.12448853]
[1737591264662,3.07641,3250.6,3250.4,0.04658589]
[1737591265429,3.07641,3250.6,3250.4,0.17107442]
[1737591266765,3.07641,3250.6,3250.5,0.12448853]
[1737591267444,3.07641,3250.6,3250.5,0.17107442]
[1737591268165,3.07641,3250.6,3250.5,0.04658589]
[1737591268317,3.07628,3250.7,3250.5,0.04658589]
[1737591268518,3.07628,3250.7,3250.2,0.12448853]
[1737591269150,3.07628,3250.7,3250.3,0.44465674]
[1737591269327,3.07619,3250.8,3250.3,0.44465674]
[1737591269532,3.07626,3250.7,3250.3,0.56914527]
[1737591269861,3.07619,3250.8,3250.3,0.56914527]
[1737591270070,3.07653,3250.5,3250.3,0.17107442]
[1737591270230,3.07635,3250.6,3250.3,0.17107442]
[1737591270636,6.15279,3250.6,3250.3,0.17107442]
[1737591271178,3.07652,3250.5,3250.3,0.17107442]
[1737591271316,3.07635,3250.6,3250.3,0.17107442]
[1737591271631,3.07644,3250.5,3250.4,0.12448853]
[1737591272642,3.07644,3250.5,3250.1,0.12448853]
[1737591272843,3.07644,3250.5,3250.2,0.04627136]
[1737591274054,3.07644,3250.5,3250.3,0.12448853]
[1737591274423,3.07654,3250.4,3250.3,0.12448853]
[1737591275323,3.07673,3250.2,3250.1,0.12448853]
[1737591276134,3.07654,3250.4,3250.1,0.12448853]
[1737591276633,3.07654,3250.4,3249.8,38.23227606]
[1737591276832,3.07654,3250.4,3249.9,3.10202562]
[1737591277423,3.07654,3250.4,3250.0,0.12448853]
[1737591278554,3.07654,3250.4,3250.1,0.12448853]
[1737591280255,3.07654,3250.4,3250.2,0.12448853]
[1737591280256,3.07665,3250.3,3250.2,0.12448853]
[1737591280938,3.86605,3250.3,3250.2,0.12448853]
[1737591281139,4.560309,3250.3,3250.2,0.12448853]
[1737591281334,1.483659,3250.3,3249.8,0.12448853]
[1737591281542,3.07701,3249.9,3249.8,0.12448853]
[1737591282761,3.86641,3249.9,3249.8,0.12448853]
[1737591283982,3.07737,3249.6,3249.3,0.12448853]
[1737591286084,3.07737,3249.6,3249.4,0.12448853]
[1737591286250,3.07715,3249.8,3249.4,0.12448853]
[1737591286581,3.07695,3250.0,3249.5,0.7946]
[1737591286885,3.07695,3250.0,3249.5,0.91908853]
[1737591287383,3.07681,3250.2,3249.6,3.47694085]
[1737591287689,3.07683,3250.1,3249.6,0.39965085]
[1737591287982,6.15336,3250.3,3249.6,3.07727]
[1737591288181,3.07679,3250.2,3249.6,3.07727]
[1737591289081,0.803,3250.4,3249.6,3.07727]
[1737591289268,0.803,3250.4,3249.7,0.70525864]
[1737591289459,3.0767,3250.3,3249.7,0.67448853]
[1737591289662,3.07674,3250.2,3249.8,0.37517285]
[1737591290552,3.07674,3250.2,3249.9,0.12448853]
[1737591291306,3.0767,3250.3,3249.9,0.12448853]
[1737591292315,3.0767,3250.3,3249.8,0.37517285]
[1737591292514,3.07675,3250.2,3249.8,0.37517285]
[1737591292686,3.0767,3250.3,3249.8,0.37517285]
[1737591293600,3.0767,3250.3,3249.9,0.40331217]
[1737591293979,3.07673,3250.2,3249.9,0.40331217]
[1737591294581,3.07673,3250.2,3250.0,0.12511413]
[1737591295491,3.07655,3250.4,3250.0,0.93241413]
[1737591296021,3.07665,3250.3,3250.0,0.93241413]
[1737591296521,3.07665,3250.3,3250.1,0.17003973]
[1737591298522,3.07665,3250.3,3250.2,0.12511413]
[1737591299206,3.07665,3250.3,3250.2,0.17003973]
[1737591300402,4.45887,3250.3,3250.2,0.17003973]
[1737591300730,4.45887,3250.3,3250.2,0.12511413]
[1737591300927,3.07655,3250.4,3249.6,0.1558844]
[1737591301131,3.0767,3250.3,3249.8,0.8073]
[1737591301327,3.07673,3250.2,3249.8,0.8073]
[1737591301836,3.07673,3250.2,3249.9,0.04488831]
[1737591302215,3.07673,3250.2,3249.9,0.17000244]
[1737591303104,3.07683,3250.1,3249.9,0.17000244]
[1737591303328,3.07692,3250.0,3249.9,0.17000244]
[1737591303718,3.07692,3250.0,3249.9,0.04488831]
[1737591304247,3.0773,3249.6,3249.0,0.7636]
[1737591304412,3.07758,3249.3,3249.0,0.7636]
[1737591305013,3.07776,3249.2,3249.1,0.12522549]
[1737591305415,8.31706,3249.9,3249.1,0.12522549]
[1737591305416,0.8203,3249.9,3249.2,0.7636]
[1737591305632,3.07736,3249.6,3249.2,0.7636]
[1737591306312,3.07736,3249.6,3249.3,0.12522549]
[1737591307974,3.07742,3249.5,3249.4,0.12522549]
[1737591310412,4.51319,3249.5,3249.4,0.12522549]
[1737591310618,7.51319,3249.5,3249.4,0.12522549]
[1737591312566,3.07816,3248.7,3248.4,0.12522549]
[1737591312922,3.07816,3248.7,3248.5,0.04397882]
[1737591313224,3.07824,3248.6,3248.5,0.04397882]
[1737591314441,3.07824,3248.6,3248.5,0.16920431]
[1737591315237,3.07824,3248.6,3248.5,0.12522549]
[1737591315428,3.07824,3248.6,3248.2,0.12522549]
[1737591315429,3.0785,3248.4,3248.2,0.12522549]
[1737591315841,3.0785,3248.4,3248.3,0.04415472]
[1737591316250,3.0785,3248.4,3248.2,0.12522549]
[1737591316552,3.07824,3248.6,3248.3,0.04415472]
[1737591316923,3.07836,3248.5,3248.2,0.12522549]
[1737591317121,3.07836,3248.5,3248.4,0.04415472]
[1737591317357,3.07836,3248.5,3248.2,0.12522549]
[1737591317556,3.07836,3248.5,3248.4,0.04415472]
[1737591317759,3.07836,3248.5,3248.2,0.12522549]
[1737591318054,3.07836,3248.5,3248.4,0.04415472]
[1737591318261,3.07853,3248.3,3248.2,0.12522549]
[1737591318764,3.07853,3248.3,3248.2,0.17019558]
[1737591319830,3.07853,3248.3,3248.2,0.04497009]
[1737591320162,3.07853,3248.3,3248.0,0.12522549]
[1737591320372,3.07853,3248.3,3248.2,0.04497009]
[1737591320527,3.07853,3248.3,3248.0,0.12522549]
[1737591320722,3.07853,3248.3,3248.2,0.04497009]
[1737591320962,3.07853,3248.3,3248.0,0.12522549]
[1737591321162,3.85372,3248.1,3248.0,0.12522549]
[1737591321729,6.85372,3248.1,3248.0,0.12522549]
[1737591322672,3.07938,3247.5,3247.0,0.7821]
[1737591324199,3.07943,3247.4,3247.0,0.7821]
[1737591324474,3.85454,3247.3,3246.6,0.7821]
[1737591324690,3.07954,3247.3,3246.7,3.08002]
[1737591324992,3.0796,3247.2,3246.6,0.7821]
[1737591325222,3.07958,3247.2,3246.6,3.8622]
[1737591325348,3.07958,3247.2,3246.6,0.7821]
[1737591325688,3.07958,3247.2,3246.6,4.248461]
[1737591326381,3.07958,3247.2,3246.7,0.04546601]
[1737591326670,3.07992,3246.9,3246.7,0.04546601]
[1737591327075,3.85469,3247.1,3246.7,0.04546601]
[1737591327279,3.07977,3247.0,3246.7,0.04546601]
[1737591327671,3.07969,3247.1,3246.7,0.04546601]
[1737591327900,3.07979,3247.0,3246.7,0.04546601]
[1737591328308,3.85451,3247.3,3246.7,0.04546601]
[1737591328756,3.07967,3247.1,3246.7,0.04546601]
[1737591329179,3.85451,3247.3,3246.7,0.43623461]
[1737591329379,6.015,3247.6,3246.9,0.7821]
[1737591329589,5.24,3247.6,3246.9,0.7821]
[1737591329759,8.31921,3247.6,3247.0,38.12623285]
[1737591329959,8.31921,3247.6,3247.0,3.12623285]
[1737591330183,3.07929,3247.5,3247.0,0.04653285]
[1737591330396,3.07929,3247.5,3247.0,0.43739114]
[1737591331497,3.07929,3247.5,3247.0,0.04653285]
[1737591332008,6.15829,3247.7,3247.0,3.12627285]
[1737591332209,0.775,3247.9,3247.2,3.07953]
[1737591332493,3.0789,3248.0,3247.3,3.90807684]
[1737591332709,3.0789,3248.0,3247.4,3.0793]
[1737591332879,3.0789,3248.0,3247.5,0.04644214]
[1737591333062,8.31838,3248.5,3247.7,0.7821]
[1737591333263,3.07847,3248.4,3247.7,0.7821]
[1737591333486,3.07847,3248.4,3247.8,3.1252701]
[1737591333965,3.07797,3248.9,3248.3,3.07853]
[1737591334164,3.07797,3248.9,3248.4,0.307853]
[1737591334365,3.0777,3249.2,3248.5,0.81]
[1737591334603,3.0777,3249.2,3248.5,0.8563301]
[1737591334978,3.07779,3249.1,3248.5,3.9346001]
[1737591335179,3.07768,3249.2,3248.6,3.47168001]
[1737591335376,0.7963,3249.5,3248.7,3.07814]
[1737591335615,5.24,3249.7,3248.7,3.12427807]
[1737591335906,0.7963,3249.8,3248.8,0.81]
[1737591336082,3.07746,3249.5,3248.8,4.43805]
[1737591336272,3.07746,3249.5,3248.9,0.48994307]
[1737591336871,3.0772,3249.7,3248.9,0.48994307]
[1737591337209,3.0772,3249.7,3249.1,0.81]
[1737591337407,3.0772,3249.7,3249.1,3.88776]
[1737591337577,3.0773,3249.6,3249.1,0.81]
[1737591337774,3.0773,3249.6,3249.2,0.04613807]
[1737591338982,3.07698,3250.0,3249.3,3.07754]
[1737591339384,3.07698,3250.0,3249.4,0.0441386]
[1737591339597,3.07698,3250.0,3249.4,3.1215586]
[1737591339803,3.07673,3250.2,3249.6,0.81]
[1737591340099,3.07684,3250.1,3249.7,0.04413327]
[1737591340476,3.07663,3250.3,3249.7,0.04413327]
[1737591340901,3.07673,3250.2,3249.7,0.04413327]
[1737591341170,0.387303,3250.2,3249.7,0.04413327]
[1737591341376,3.07711,3249.8,3249.7,0.04413327]
[1737591341604,3.0774,3249.5,3249.3,0.81]
[1737591341785,0.387303,3250.2,3249.0,0.81]
[1737591342004,3.07756,3249.4,3249.0,0.81]
[1737591342186,3.07736,3249.6,3249.0,0.81]
[1737591342379,3.07751,3249.4,3249.0,1.198797]
[1737591342688,3.0774,3249.5,3249.0,1.198797]
[1737591349225,0.7963,3249.8,3248.4,3.49867945]
[1737591349226,3.0777,3249.2,3248.7,0.755]
[1737591349723,3.07796,3248.9,3248.7,0.755]
[1737591350733,3.07782,3249.1,3248.7,0.755]
[1737591350902,3.07762,3249.3,3248.7,0.755]
[1737591351098,3.07762,3249.3,3248.7,1.14139624]
[1737591351511,8.31722,3249.7,3248.7,0.38639624]
[1737591351691,3.07722,3249.7,3248.9,3.07788]
[1737591351893,3.07722,3249.7,3249.0,3.83279]
[1737591352425,3.0774,3249.5,3249.0,3.83279]
[1737591352828,3.07722,3249.7,3249.0,3.83279]
[1737591352992,3.07722,3249.7,3249.1,3.07775]
[1737591353192,3.07722,3249.7,3249.2,0.691054]
[1737591354291,3.07736,3249.6,3249.2,0.691054]
[1737591354601,3.07736,3249.6,3249.0,3.83286]
[1737591354801,3.07722,3249.7,3249.0,3.83286]
[1737591354998,3.07737,3249.6,3249.0,3.83286]
[1737591356306,3.07737,3249.6,3249.1,0.04438375]
[1737591356935,6.15377,3250.1,3249.4,3.07748]
[1737591357229,3.07693,3250.0,3249.4,3.768489]
[1737591357430,3.07693,3250.0,3249.5,0.04438375]
[1737591357618,3.07707,3249.9,3249.5,0.04438375]
[1737591357822,3.07673,3250.2,3249.5,0.04438375]
[1737591358133,3.0773,3249.6,3249.5,0.04438375]
[1737591358310,3.0773,3249.6,3249.0,0.755]
[1737591358511,3.07751,3249.4,3249.1,0.04438375]
[1737591359106,3.07758,3249.3,3249.1,0.04438375]
[1737591359851,3.07768,3249.2,3249.1,0.04438375]
[1737591359993,3.90378,3249.2,3249.1,0.04438375]
[1737591360201,3.07816,3248.7,3248.4,0.755]
[1737591360724,3.07824,3248.6,3248.5,0.04406933]
[1737591361136,3.07816,3248.7,3248.1,0.755]
[1737591361471,3.07865,3248.2,3247.6,3.83418]
[1737591361654,3.07845,3248.4,3247.6,38.83418]
[1737591361817,3.07845,3248.4,3248.2,0.12464691]
[1737591362558,3.07853,3248.3,3248.2,0.12464691]
[1737591363534,3.07853,3248.3,3247.8,0.12464691]
[1737591363737,3.07884,3248.0,3247.8,0.12464691]
[1737591364039,3.07872,3248.1,3247.8,0.12464691]
[1737591365025,3.07891,3247.9,3247.8,0.12464691]
[1737591365230,3.07904,3247.8,3247.4,0.755]
[1737591365536,3.07916,3247.7,3247.4,0.755]
[1737591366106,3.07923,3247.6,3247.4,0.755]
[1737591366563,3.07916,3247.7,3247.5,0.12486214]
[1737591366767,3.07901,3247.8,3247.5,0.12486214]
[1737591367566,3.07918,3247.7,3247.5,0.12486214]
[1737591368068,3.07901,3247.8,3247.5,0.12486214]
[1737591368269,3.07901,3247.8,3247.2,0.12486214]
[1737591368563,3.07901,3247.8,3247.2,0.52842035]
[1737591369097,3.07901,3247.8,3247.2,3.60796035]
[1737591369388,3.07901,3247.8,3247.3,0.12486214]
[1737591370176,3.07912,3247.7,3247.3,0.12486214]
[1737591370805,3.8261,3248.2,3247.3,0.12486214]
[1737591370961,3.07937,3247.5,3247.3,0.12486214]
[1737591371373,3.07912,3247.7,3247.4,0.0457646]
[1737591371769,3.07927,3247.6,3247.4,0.0457646]
[1737591372287,3.07907,3247.8,3247.2,0.12486214]
[1737591372475,3.07894,3247.9,3247.5,0.0457646]
[1737591372792,3.07912,3247.7,3247.6,0.0457646]
[1737591372992,3.07912,3247.7,3247.2,0.12486214]
[1737591373186,3.07912,3247.7,3247.6,0.0457646]
[1737591373379,3.07912,3247.7,3247.2,0.12486214]
[1737591373691,3.84262,3247.7,3247.6,0.0457646]
[1737591374064,3.07948,3247.3,3247.2,0.12486214]
[1737591374211,3.07937,3247.5,3247.2,0.12486214]
[1737591374601,3.07937,3247.5,3247.3,0.04608468]
[1737591374602,3.07944,3247.4,3247.3,0.04608468]
[1737591374972,3.07944,3247.4,3246.6,4.46124]
[1737591375173,3.07944,3247.4,3246.6,5.21538]
[1737591375372,3.07958,3247.2,3246.8,0.55]
[1737591375625,3.07968,3247.1,3246.7,0.04608468]
[1737591375836,3.07977,3247.0,3246.6,0.8311]
[1737591376105,3.07996,3246.8,3246.6,0.8311]
[1737591376268,3.07977,3247.0,3246.6,0.8311]
[1737591376898,3.07987,3246.9,3246.6,0.8311]
[1737591377085,3.07977,3247.0,3246.6,0.8311]
[1737591377900,3.07987,3246.9,3246.6,0.8311]
[1737591378816,3.08005,3246.7,3246.6,0.8311]
[1737591379199,0.7635,3247.1,3246.6,0.8311]
[1737591379200,3.07986,3246.9,3246.6,0.8311]
[1737591379397,3.07997,3246.8,3246.6,0.8311]
[1737591379713,3.07981,3247.0,3246.6,0.8311]
[1737591380015,3.07971,3247.1,3246.6,1.222242]
[1737591382317,3.07956,3247.3,3246.8,0.7832]
[1737591383818,3.07958,3247.2,3246.8,0.7832]
[1737591384323,3.07969,3247.1,3246.8,0.7832]
[1737591384723,3.07969,3247.1,3246.9,0.04673562]
[1737591385091,3.07969,3247.1,3246.8,0.7832]
[1737591385507,3.07969,3247.1,3246.9,0.04673562]
[1737591389540,3.07976,3247.0,3246.9,0.04673562]
[1737591391555,3.07976,3247.0,3246.8,0.9556342]
[1737591391838,3.07976,3247.0,3246.9,0.04663956]
[1737591393043,3.07976,3247.0,3246.9,0.17175598]
[1737591394640,3.07976,3247.0,3246.9,0.339495]
[1737591396243,3.07976,3247.0,3246.9,0.17175598]
[1737591396446,3.90066,3247.0,3246.9,0.17175598]
[1737591396645,3.90066,3247.0,3246.9,0.12511642]
[1737591397141,3.08033,3246.4,3246.3,0.12511642]
[1737591397748,3.08033,3246.4,3246.3,0.17012483]
[1737591398524,3.08023,3246.6,3246.3,0.17012483]
[1737591398847,3.08026,3246.5,3246.3,0.17012483]
[1737591399143,3.08033,3246.4,3246.3,0.17012483]
[1737591399448,3.08033,3246.4,3246.3,0.12511642]
[1737591399649,3.08033,3246.4,3246.3,0.17030612]
[1737591400014,3.08023,3246.6,3246.3,0.17030612]
[1737591400517,3.08026,3246.5,3246.3,0.17030612]
[1737591400747,3.08033,3246.4,3246.3,0.17030612]
[1737591400940,3.08033,3246.4,3246.3,0.0451897]
[1737591401318,3.08023,3246.6,3246.2,0.8125]
[1737591401519,3.08026,3246.5,3246.3,0.04515237]
[1737591402044,3.08023,3246.6,3246.4,0.04514704]
[1737591402218,3.08024,3246.5,3246.4,0.04514704]
[1737591403451,3.08023,3246.6,3246.4,0.1705265]
[1737591403750,3.07972,3247.1,3246.4,0.1705265]
[1737591403751,3.07967,3247.1,3246.6,0.8125]
[1737591404090,3.07974,3247.1,3246.7,0.48946503]
[1737591404251,3.07974,3247.1,3246.7,0.04519503]
[1737591404431,3.0798,3247.0,3246.7,0.04519503]
[1737591405153,3.07974,3247.1,3246.8,0.12537946]
[1737591405360,3.0795,3247.3,3246.8,0.12537946]
[1737591405527,3.07958,3247.2,3246.9,0.32505945]
[1737591405838,3.07967,3247.1,3246.9,0.04519503]
[1737591406857,3.07967,3247.1,3247.0,0.12537946]
[1737591407234,3.07967,3247.1,3247.0,0.17057449]
[1737591407933,3.0795,3247.3,3247.0,0.17057449]
[1737591408253,3.07945,3247.4,3247.0,0.17057449]
[1737591408427,3.07945,3247.4,3247.1,0.8125]
[1737591408626,3.0791,3247.8,3247.2,0.55]
[1737591408854,3.0791,3247.8,3247.2,1.05621254]
[1737591409058,3.07911,3247.7,3247.3,0.12537946]
[1737591410356,3.07896,3247.9,3247.3,0.12537946]
[1737591410543,3.07896,3247.9,3247.3,3.20476946]
[1737591410749,3.07896,3247.9,3247.4,0.17031855]
[1737591410965,3.07896,3247.9,3247.4,0.59641675]
[1737591411254,3.07901,3247.8,3247.4,0.59641675]
[1737591411475,3.07901,3247.8,3247.4,0.17031855]
[1737591411922,3.07896,3247.9,3247.4,0.17031855]
[1737591412125,3.07896,3247.9,3247.5,0.12537946]
[1737591412725,3.07907,3247.8,3247.6,0.04493909]
[1737591413355,3.07907,3247.8,3247.6,0.17031855]
[1737591413954,3.07896,3247.9,3247.6,0.17031855]
[1737591414134,3.0791,3247.7,3247.6,0.17031855]
[1737591414662,3.0791,3247.7,3247.6,0.04493909]
[1737591414956,3.0791,3247.7,3247.2,0.55]
[1737591415136,3.0791,3247.7,3247.6,0.04493909]
[1737591415333,3.0791,3247.7,3247.2,0.994219]
[1737591415537,3.0791,3247.7,3247.6,0.04493909]
[1737591415738,3.07896,3247.9,3247.2,4.073719]
[1737591415961,3.07896,3247.9,3247.6,0.04493909]
[1737591416257,3.07896,3247.9,3247.7,0.04493909]
[1737591416258,3.07902,3247.8,3247.7,0.04493909]
[1737591416573,3.07902,3247.8,3247.3,0.12516617]
[1737591416755,3.07902,3247.8,3247.7,0.04493909]
[1737591416965,3.07896,3247.9,3247.3,0.62632069]
[1737591417261,3.07873,3248.1,3247.7,0.7796]
[1737591417641,3.07882,3248.0,3247.7,0.7796]
[1737591417842,3.07882,3248.0,3247.8,0.04493909]
[1737591418229,3.07882,3248.0,3247.7,0.7796]
[1737591418431,0.60738983,3248.7,3247.7,0.7796]
[1737591418432,3.85403,3248.8,3248.1,3.07866]
[1737591418674,3.07813,3248.8,3248.2,0.7796]
[1737591418880,3.07813,3248.8,3248.2,0.82366501]
[1737591419138,3.07813,3248.8,3248.2,3.90228501]
[1737591419778,3.07817,3248.7,3248.2,0.82366501]
[1737591420424,3.07758,3249.3,3248.2,0.04406501]
[1737591420425,3.07853,3248.3,3248.2,0.04406501]
[1737591420683,3.85443,3248.3,3247.6,0.7796]
[1737591420833,3.07892,3247.9,3247.6,0.7796]
[1737591421165,3.07901,3247.8,3247.3,3.07946]
[1737591421464,3.07901,3247.8,3247.4,1.3296]
[1737591421827,3.07901,3247.8,3247.4,0.7796]
[1737591422027,3.07925,3247.6,3247.1,0.7796]
[1737591422785,3.07949,3247.3,3247.1,0.7796]
[1737591422977,3.07949,3247.3,3246.4,3.8599]
[1737591423189,3.85507,3247.7,3247.2,0.12500468]
[1737591423370,3.07948,3247.3,3247.2,0.12500468]
[1737591423773,3.85538,3247.3,3247.2,0.12500468]
[1737591424362,0.7759,3247.3,3246.6,0.12500468]
[1737591424566,3.07991,3246.9,3246.6,0.12500468]
[1737591424773,3.07988,3246.9,3246.6,0.12500468]
[1737591425890,3.07988,3246.9,3246.5,0.12500468]
[1737591426263,3.07976,3247.0,3246.5,0.52350715]
[1737591426989,3.07976,3247.0,3246.6,0.12500468]
[1737591428793,3.07976,3247.0,3246.7,0.12500468]
[1737591428968,3.07987,3246.9,3246.7,0.12500468]
[1737591429166,3.07995,3246.8,3246.7,0.12500468]
[1737591429378,3.43528184,3246.8,3246.7,0.12500468]
[1737591429582,3.07995,3246.8,3246.7,0.12500468]
[1737591429782,3.86285,3246.8,3246.7,0.12500468]
[1737591429978,3.86285,3246.8,3246.7,0.04286431]
[1737591430180,3.86285,3246.8,3246.1,3.90859]
[1737591430385,3.08008,3246.7,3246.2,0.04286431]
[1737591430686,3.08008,3246.7,3246.2,0.43800974]
[1737591430875,3.08008,3246.7,3246.2,0.56301528]
[1737591431492,3.86285,3246.8,3246.2,0.56301528]
[1737591431692,3.08006,3246.7,3246.3,0.12500554]
[1737591431859,3.86285,3246.8,3246.3,0.16794444]
[1737591432191,3.08006,3246.7,3246.3,0.16794444]
[1737591432894,3.08006,3246.7,3246.4,0.12500554]
[1737591433084,3.08006,3246.7,3246.4,0.16887106]
[1737591433482,5.24,3247.2,3246.5,3.08016]
[1737591433483,0.7829,3247.1,3246.5,3.08016]
[1737591433669,8.31959,3247.2,3246.6,3.90812]
[1737591434105,8.31959,3247.2,3246.7,0.16892434]
[1737591434562,5.24,3247.2,3247.0,3.07973]
[1737591434761,8.31891,3247.9,3247.2,3.0795]
[1737591435281,8.31891,3247.9,3247.3,0.04379626]
[1737591435490,8.31891,3247.9,3247.3,0.1688018]
[1737591435696,3.07921,3247.6,3247.3,0.1688018]
[1737591435991,3.07938,3247.4,3247.3,0.1688018]
[1737591436374,3.07928,3247.6,3246.8,0.828]
[1737591436375,3.07928,3247.6,3246.9,3.62982]
[1737591436573,6.86193,3247.8,3247.3,0.04379626]
[1737591436574,3.7829,3247.8,3247.3,0.04379626]
[1737591436892,3.07979,3247.0,3246.5,0.828]
[1737591438260,3.07979,3247.0,3246.6,0.1249073]
[1737591438460,3.08002,3246.8,3246.6,0.1249073]
[1737591438868,3.08002,3246.8,3246.6,0.41108725]
[1737591439972,3.07986,3246.9,3246.3,3.08041]
[1737591440164,3.07986,3246.9,3246.3,3.81600654]
[1737591441301,3.07986,3246.9,3246.4,0.28622947]
[1737591441641,3.07986,3246.9,3246.4,0.41115277]
[1737591442802,3.07986,3246.9,3246.5,0.41115277]
[1737591443388,3.07996,3246.8,3246.5,0.41115277]
[1737591443777,3.07996,3246.8,3246.6,0.28622947]
[1737591444388,3.07977,3247.0,3246.6,0.41115277]
[1737591444777,3.07977,3247.0,3246.7,0.7868]
[1737591444979,3.07987,3246.9,3246.7,0.7868]
[1737591445184,3.07987,3246.9,3246.7,1.07302947]
[1737591446109,3.07987,3246.9,3246.8,0.1249233]
[1737591446303,3.07987,3246.9,3246.8,0.41115277]
[1737591446511,3.07987,3246.9,3246.8,0.45468321]
[1737591447604,3.07977,3247.0,3246.8,0.32975991]
[1737591448334,3.07959,3247.2,3246.8,0.32975991]
[1737591448476,3.07959,3247.2,3246.9,0.7868]
[1737591448831,3.07942,3247.4,3246.9,0.83035175]
[1737591449824,3.07942,3247.4,3247.0,0.28622947]
[1737591450039,3.07942,3247.4,3247.0,0.41122556]
[1737591450506,3.07942,3247.4,3247.1,0.04355175]
[1737591450825,3.07942,3247.4,3247.1,0.32978122]
[1737591451499,3.07942,3247.4,3247.2,0.12499609]
[1737591451881,3.07942,3247.4,3247.3,0.04355175]
[1737591452117,3.07942,3247.4,3247.2,0.12499609]
[1737591452314,3.07942,3247.4,3247.3,0.04355175]
[1737591452626,3.07942,3247.4,3247.3,0.28622947]
[1737591452793,8.31922,3247.6,3247.3,0.32978122]
[1737591453000,3.07929,3247.5,3247.3,0.45477731]
[1737591453603,3.07914,3247.7,3247.3,0.45477731]
[1737591453816,3.07914,3247.7,3247.4,0.8311]
[1737591454001,3.07892,3247.9,3247.4,0.95609609]
[1737591454207,3.07862,3248.3,3247.6,3.07912]
[1737591454492,3.07846,3248.4,3247.8,3.07895]
[1737591454848,3.07836,3248.5,3247.9,0.04299774]
[1737591455307,3.0783,3248.6,3248.1,0.8311]
[1737591455507,0.7586,3249.1,3248.4,3.07842]
[1737591455699,8.3177,3249.2,3248.4,3.07842]
[1737591455700,3.0777,3249.2,3248.5,0.8311]
[1737591455896,3.0777,3249.2,3248.6,3.07821]
[1737591456100,3.07752,3249.4,3248.7,3.07814]
[1737591456297,3.07733,3249.6,3248.7,3.07814]
[1737591456501,3.07733,3249.6,3249.0,3.0778]
[1737591456822,3.07733,3249.6,3249.1,0.8311]
[1737591457118,3.07733,3249.6,3249.2,0.04248126]
[1737591458224,3.83574,3249.8,3249.2,0.04248126]
[1737591458225,3.07758,3249.3,3249.2,0.04248126]
[1737591458420,3.07758,3249.3,3248.8,0.8311]
[1737591458927,3.07758,3249.3,3248.5,8.45827]
[1737591458928,3.07787,3249.0,3248.9,0.04248126]
[1737591459088,0.7586,3249.1,3247.9,3.0789]
[1737591459089,3.07824,3248.6,3248.2,0.8311]
[1737591459293,0.7586,3249.1,3248.2,0.8311]
[1737591459490,3.07824,3248.7,3248.2,0.8311]
[1737591459691,3.07826,3248.6,3248.2,0.8311]
[1737591460391,3.07826,3248.6,3247.5,2.88066196]
[1737591460392,0.40949764,3248.6,3247.8,0.8311]
[1737591460594,3.07852,3248.4,3247.8,0.8311]
[1737591460814,3.07859,3248.3,3247.8,0.8311]
[1737591461014,3.07859,3248.3,3247.9,0.12445481]
[1737591461416,3.07859,3248.3,3247.9,0.40961074]
[1737591461630,6.07794,3249.0,3248.0,0.04248126]
[1737591461631,3.07828,3248.6,3248.0,0.04248126]
[1737591461820,0.7586,3249.5,3248.4,0.55]
[1737591462019,3.07772,3249.2,3248.5,3.10906034]
[1737591462260,3.07772,3249.2,3248.6,0.67374903]
[1737591462539,3.07789,3249.0,3248.6,0.67374903]
[1737591462699,3.07779,3249.1,3248.7,0.04229498]
[1737591463036,3.07787,3249.0,3248.7,0.04229498]
[1737591464152,3.07797,3248.9,3248.7,0.04229498]
[1737591464435,3.07797,3248.9,3248.4,0.55]
[1737591464604,3.07797,3248.9,3248.4,0.995971]
[1737591464801,0.7586,3249.5,3248.5,0.04229498]
[1737591465002,3.07824,3248.6,3248.5,0.04229498]
[1737591465203,3.07838,3248.5,3248.0,0.8311]
[1737591465501,3.07821,3248.7,3248.0,0.8311]
[1737591465855,3.07821,3248.7,3248.1,3.07871]
[1737591466156,3.07827,3248.6,3248.1,0.698871]
[1737591467140,3.07841,3248.5,3248.1,0.698871]
[1737591468733,3.07821,3248.7,3248.1,0.698871]
[1737591469135,0.7586,3248.9,3248.0,0.8311]
[1737591469345,3.07863,3248.2,3247.6,5.38]
[1737591469523,3.07863,3248.2,3247.7,1.3114]
[1737591469704,3.07863,3248.2,3247.8,0.66914]
[1737591470236,0.7586,3248.9,3247.8,3.74808]
[1737591470237,3.07843,3248.5,3247.8,3.74808]
[1737591470839,3.07843,3248.5,3247.9,0.12447945]
[1737591472355,3.0779,3249.0,3248.1,3.84012]
[1737591472513,3.07808,3248.8,3248.2,3.07858]
[1737591472711,3.07808,3248.8,3248.3,0.383998]
[1737591474103,0.7738,3249.2,3248.3,0.383998]
[1737591474418,3.07843,3248.5,3248.1,0.7614]
[1737591474619,3.0785,3248.4,3248.2,0.04147515]
[1737591475215,3.07853,3248.3,3248.2,0.04147515]
[1737591475423,3.07862,3248.2,3247.8,0.7584]
[1737591475608,3.07862,3248.2,3247.9,0.04023606]
[1737591475944,3.07882,3248.0,3247.9,0.04023606]
[1737591476846,3.07882,3248.0,3247.9,0.12472965]
[1737591477048,3.07882,3248.0,3247.9,0.16496571]
[1737591478853,3.07882,3248.0,3247.9,0.32581922]
[1737591479347,4.490564,3248.0,3247.9,0.32581922]
[1737591479551,4.490564,3248.0,3247.9,0.28558316]
[1737591480253,4.490564,3248.0,3247.7,0.12472965]
[1737591480466,3.079,3247.8,3247.7,0.12472965]
[1737591480766,3.07919,3247.6,3247.1,0.7584]
[1737591480969,3.0791,3247.7,3247.1,0.7584]
[1737591481173,3.0791,3247.7,3247.2,0.383809]